Workbook

Sheet Supplementary Table S9
A1: Supplementary Table S9. Quantification of relative expression levels and standard deviation (SD) in the qRT-PCR.
A2: Lithospermum erythrorhizon
A3: LeGAPDH (internal reference) | B3: Three biological replicates | E3: Average Ct | F3: SD | G3: - | H3: - | I3: - | J3: - | K3: -
B4: Average Ct1 | C4: Average Ct2 | D4: Average Ct3
A5: LeGL | B5: 23.02626257 | C5: 23.06089033 | D5: 23.04262675 | E5: =AVERAGE(B5:D5) -> 23.04325989 | F5: =STDEV(B5:D5) -> 0.01732255833
A6: LeRR | B6: 28.15269224 | C6: 28.28974509 | D6: 28.14251071 | E6: =AVERAGE(B6:D6) -> 28.19498268 | F6: =STDEV(B6:D6) -> 0.08222439873
A7: G10H-LeCL2572.Contig1 | B7: Three biological replicates | E7: Average Ct | F7: SD | G7: ⊿Ct | H7: ⊿⊿Ct | I7: 2-⊿⊿Ct | J7: 2(-(⊿⊿Ct+SD)) | K7: 2(-(⊿⊿Ct-SD))
B8: Average Ct1 | C8: Average Ct2 | D8: Average Ct3
A9: LeGL | B9: 30.56402131 | C9: 30.48378124 | D9: 30.5690761 | E9: =AVERAGE(B9:D9) -> 30.53895955 | F9: =STDEV(B9:D9) -> 0.04785260904 | G9: =E9-E5 -> 7.495699664 | H9: 0 | I9: =POWER(2,-H9) -> 1 | J9: =POWER(2,-(H9+F9)) -> 0.9673751551 | K9: =POWER(2,-(H9-F9)) -> 1.033725122
A10: LeRR | B10: 29.46073095 | C10: 29.39487917 | D10: 29.43569931 | E10: =AVERAGE(B10:D10) -> 29.43043648 | F10: =STDEV(B10:D10) -> 0.03323984667 | G10: =E10-E6 -> 1.2354538 | H10: =G10-G9 -> -6.260245864 | I10: =POWER(2,-H10) -> 76.65169894 | J10: =POWER(2,-(H10+F10)) -> 74.90582546 | K10: =POWER(2,-(H10-F10)) -> 78.4382645
A11: 12OPR-LeCL2081.Contig2 | B11: Three biological replicates | E11: Average Ct | F11: SD | G11: ⊿Ct | H11: ⊿⊿Ct | I11: 2-⊿⊿Ct | J11: 2(-(⊿⊿Ct+SD)) | K11: 2(-(⊿⊿Ct-SD))
B12: Average Ct1 | C12: Average Ct2 | D12: Average Ct3
A13: LeGL | B13: 29.61811497 | C13: 29.53035333 | D13: 29.46409878 | E13: =AVERAGE(B13:D13) -> 29.53752236 | F13: =STDEV(B13:D13) -> 0.07725796378 | G13: =E13-E5 -> 6.494262472 | H13: 0 | I13: =POWER(2,-H13) -> 1 | J13: =POWER(2,-(H13+F13)) -> 0.9478574666 | K13: =POWER(2,-(H13-F13)) -> 1.055010943
A14: LeRR | B14: 28.82208241 | C14: 28.88073814 | D14: 28.85588265 | E14: =AVERAGE(B14:D14) -> 28.85290107 | F14: =STDEV(B14:D14) -> 0.02944131204 | G14: =E14-E6 -> 0.6579183869 | H14: =G14-G13 -> -5.836344085 | I14: =POWER(2,-H14) -> 57.13663173 | J14: =POWER(2,-(H14+F14)) -> 55.98245202 | K14: =POWER(2,-(H14-F14)) -> 58.31460694
A15: Arnebia euchroma
A16: AeGAPDH (internal reference) | B16: Three biological replicates | E16: Average Ct | F16: SD | G16: - | H16: - | I16: - | J16: - | K16: -
B17: Average Ct1 | C17: Average Ct2 | D17: Average Ct3
A18: AeGL | B18: 24.1945226 | C18: 24.17782706 | D18: 24.19948903 | E18: =AVERAGE(B18:D18) -> 24.1906129 | F18: =STDEV(B18:D18) -> 0.01134789018
A19: AeRR | B19: 30.26255559 | C19: 30.59558727 | D19: 30.43889206 | E19: =AVERAGE(B19:D19) -> 30.43234497 | F19: =STDEV(B19:D19) -> 0.1666123406
A20: G10H-AeCL6292.Contig2 | B20: Three biological replicates | E20: Average Ct | F20: SD | G20: ⊿Ct | H20: ⊿⊿Ct | I20: 2-⊿⊿Ct | J20: 2(-(⊿⊿Ct+SD)) | K20: 2(-(⊿⊿Ct-SD))
B21: Average Ct1 | C21: Average Ct2 | D21: Average Ct3
A22: AeGL | B22: 27.35933221 | C22: 27.36330246 | D22: 27.26592671 | E22: =AVERAGE(B22:D22) -> 27.32952046 | F22: =STDEV(B22:D22) -> 0.05510957126 | G22: =E22-E18 -> 3.138907567 | H22: 0 | I22: =POWER(2,-H22) -> 1 | J22: =POWER(2,-(H22+F22)) -> 0.9625213378 | K22: =POWER(2,-(H22-F22)) -> 1.038938007
A23: AeRR | B23: 28.57445824 | C23: 28.32071195 | D23: 28.01909175 | E23: =AVERAGE(B23:D23) -> 28.30475398 | F23: =STDEV(B23:D23) -> 0.278026939 | G23: =E23-E19 -> -2.127590992 | H23: =G23-G22 -> -5.266498559 | I23: =POWER(2,-H23) -> 38.49231564 | J23: =POWER(2,-(H23+F23)) -> 31.7453113 | K23: =POWER(2,-(H23-F23)) -> 46.67329766
A24: 12OPR-AeCL94.Contig3 | B24: Three biological replicates | E24: Average Ct | F24: SD | G24: ⊿Ct | H24: ⊿⊿Ct | I24: 2-⊿⊿Ct | J24: 2(-(⊿⊿Ct+SD)) | K24: 2(-(⊿⊿Ct-SD))
B25: Average Ct1 | C25: Average Ct2 | D25: Average Ct3
A26: AeGL | B26: 22.17558677 | C26: 22.15641761 | D26: 22.19358919 | E26: =AVERAGE(B26:D26) -> 22.17519786 | F26: =STDEV(B26:D26) -> 0.01858884131 | G26: =E26-E18 -> -2.015415038 | H26: 0 | I26: =POWER(2,-H26) -> 1 | J26: =POWER(2,-(H26+F26)) -> 0.9871978508 | K26: =POWER(2,-(H26-F26)) -> 1.01296817
A27: AeRR | B27: 25.71730828 | C27: 25.29749951 | D27: 25.46365777 | E27: =AVERAGE(B27:D27) -> 25.49282185 | F27: =STDEV(B27:D27) -> 0.2114184423 | G27: =E27-E19 -> -4.939523122 | H27: =G27-G26 -> -2.924108083 | I27: =POWER(2,-H27) -> 7.590043127 | J27: =POWER(2,-(H27+F27)) -> 6.555426476 | K27: =POWER(2,-(H27-F27)) -> 8.787949171
A28: Echium plantagineum
A29: EpGAPDH (internal reference) | B29: Three biological replicates | E29: Average Ct | F29: SD | G29: - | H29: - | I29: - | J29: - | K29: -
B30: Average Ct1 | C30: Average Ct2 | D30: Average Ct3
A31: EpGL | B31: 19.86023258 | C31: 19.79587677 | D31: 19.78027218 | E31: =AVERAGE(B31:D31) -> 19.81212718 | F31: =STDEV(B31:D31) -> 0.0423848207
A32: EpRR | B32: 18.39062117 | C32: 18.3983059 | D32: 18.47956904 | E32: =AVERAGE(B32:D32) -> 18.42283204 | F32: =STDEV(B32:D32) -> 0.04928569434
A33: G10H-EpCL2694.Contig1 | B33: Three biological replicates | E33: Average Ct | F33: SD | G33: ⊿Ct | H33: ⊿⊿Ct | I33: 2-⊿⊿Ct | J33: 2(-(⊿⊿Ct+SD)) | K33: 2(-(⊿⊿Ct-SD))
B34: Average Ct1 | C34: Average Ct2 | D34: Average Ct3
A35: EpGL | B35: 27.12897858 | C35: 27.13128666 | D35: 27.32500772 | E35: =AVERAGE(B35:D35) -> 27.19509099 | F35: =STDEV(B35:D35) -> 0.1125171066 | G35: =E35-E31 -> 7.382963809 | H35: 0 | I35: =POWER(2,-H35) -> 1 | J35: =POWER(2,-(H35+F35)) -> 0.9249728297 | K35: =POWER(2,-(H35-F35)) -> 1.081112837
A36: EpRR | B36: 22.03524085 | C36: 22.09908554 | D36: 22.28039164 | E36: =AVERAGE(B36:D36) -> 22.13823934 | F36: =STDEV(B36:D36) -> 0.1271789769 | G36: =E36-E32 -> 3.715407308 | H36: =G36-G35 -> -3.667556501 | I36: =POWER(2,-H36) -> 12.70704353 | J36: =POWER(2,-(H36+F36)) -> 11.63482434 | K36: =POWER(2,-(H36-F36)) -> 13.87807418
A37: 12OPR-EpCL1162.Contig2 | B37: Three biological replicates | E37: Average Ct | F37: SD | G37: ⊿Ct | H37: ⊿⊿Ct | I37: 2-⊿⊿Ct | J37: 2(-(⊿⊿Ct+SD)) | K37: 2(-(⊿⊿Ct-SD))
B38: Average Ct1 | C38: Average Ct2 | D38: Average Ct3
A39: EpGL | B39: 30.27343734 | C39: 30.05469558 | D39: 30.31924696 | E39: =AVERAGE(B39:D39) -> 30.2157933 | F39: =STDEV(B39:D39) -> 0.1413824074 | G39: =E39-E31 -> 10.40366612 | H39: 0 | I39: =POWER(2,-H39) -> 1 | J39: =POWER(2,-(H39+F39)) -> 0.9066499762 | K39: =POWER(2,-(H39-F39)) -> 1.10296148
A40: EpRR | B40: 26.21294383 | C40: 26.0640012 | D40: 26.22305492 | E40: =AVERAGE(B40:D40) -> 26.16666665 | F40: =STDEV(B40:D40) -> 0.08905450179 | G40: =E40-E32 -> 7.743834615 | H40: =G40-G39 -> -2.659831504 | I40: =POWER(2,-H40) -> 6.319592369 | J40: =POWER(2,-(H40+F40)) -> 5.941293263 | K40: =POWER(2,-(H40-F40)) -> 6.72197886
